bitfinex/quotes_SOLUSD_20240813
["timestamp","ask_amount","ask_price","bid_price","bid_amount"]
[1723541663378,6.8966,145.0,144.97,45.0]
[1723541663593,6.8961,145.01,144.97,51.8978]
[1723541664189,6.8957,145.02,144.98,7.02279]
[1723541664598,6.896,145.01,144.98,7.02279]
[1723541664798,6.896,145.01,144.98,0.12549]
[1723541664999,6.896,145.01,144.98,0.25098]
[1723541666287,6.896,145.01,144.98,0.12549]
[1723541666493,6.8966,145.0,144.98,0.12549]
[1723541666693,6.8962,145.01,144.98,0.12549]
[1723541666892,6.8957,145.02,144.98,7.02279]
[1723541667101,6.8957,145.02,144.99,6.897]
[1723541667305,6.8957,145.02,144.98,7.02279]
[1723541667486,6.8957,145.02,144.99,45.12549]
[1723541667682,6.896,145.01,144.99,45.12549]
[1723541667886,59.98,145.04,144.99,51.8968]
[1723541668283,60.79962878,145.04,144.99,45.0]
[1723541668484,60.79962878,145.04,144.98,45.25098]
[1723541668679,6.8962,145.01,144.98,45.0]
[1723541669007,6.8962,145.01,144.97,24.142]
[1723541669221,6.8962,145.01,144.98,45.12549]
[1723541669817,39.98,145.02,144.95,6.0664]
[1723541669990,6.8987,144.96,144.92,6.9]
[1723541670192,6.8988,144.96,144.92,6.9]
[1723541670994,6.8988,144.96,144.92,6.9003]
[1723541671190,6.8982,144.97,144.93,6.8998]
[1723541671385,39.98,144.95,144.93,6.8998]
[1723541671688,6.9005,144.92,144.88,0.8200388]
[1723541671891,39.98,144.93,144.88,7.7222388]
[1723541672093,17.248,144.95,144.88,7.7222388]
[1723541672094,6.9004,144.92,144.88,7.7222388]
[1723541672284,6.9009,144.91,144.88,0.8200388]
[1723541673219,39.98,144.93,144.88,0.8200388]
[1723541673394,6.9017,144.89,144.88,0.8200388]
[1723541674220,46.8817,144.89,144.88,0.8200388]
[1723541674385,40.92511878,144.89,144.79,6.4895]
[1723541674588,46.8837,144.85,144.79,6.4895]
[1723541674908,6.9037,144.85,144.79,13.3956]
[1723541675096,39.98,144.85,144.76,17.2689]
[1723541675425,6.9051,144.82,144.76,24.1764]
[1723541675716,6.9041,144.84,144.79,6.9063]
[1723541675886,56.542,144.87,144.79,6.9063]
[1723541676081,56.542,144.87,144.75,23.0356]
[1723541676082,26.9033,144.86,144.75,23.0356]
[1723541676297,26.9033,144.86,144.8,24.1696]
[1723541676712,6.9038,144.85,144.81,0.12549]
[1723541676916,6.9048,144.83,144.78,6.9066]
[1723541677216,6.9037,144.85,144.8,6.906]
[1723541677719,20.0,144.86,144.79,6.9063]
[1723541678020,6.9042,144.84,144.79,6.9063]
[1723541678318,20.0,144.86,144.8,45.12549]
[1723541678519,6.904,144.85,144.8,7.15698]
[1723541678900,20.0,144.86,144.8,0.12549]
[1723541679105,39.98,144.85,144.79,45.12549]
[1723541679303,6.905,144.83,144.79,45.12549]
[1723541679506,6.9051,144.82,144.78,17.39189]
[1723541679703,39.98,144.85,144.78,0.12549]
[1723541679907,6.9061,144.8,144.76,0.12549]
[1723541680105,6.9061,144.8,144.76,0.50196]
[1723541680399,6.9056,144.81,144.76,6.9078]
[1723541680802,39.98,144.83,144.78,6.9069]
[1723541681196,39.98,144.85,144.76,17.2692]
[1723541681499,6.9052,144.82,144.78,6.9068]
[1723541681706,6.9052,144.82,144.78,0.12549]
[1723541681908,6.9052,144.82,144.78,7.28327]
[1723541682113,6.9047,144.83,144.78,7.28327]
[1723541682315,6.9042,144.84,144.79,8.28737208]
[1723541682507,6.903,144.87,144.82,6.905]
[1723541682823,57.2351,144.89,144.8,17.38989]
[1723541683200,39.98,144.89,144.82,17.38769]
[1723541683399,6.9013,144.9,144.86,0.12549]
[1723541683722,46.3337,144.94,144.86,45.12549]
[1723541683893,39.98,144.92,144.85,0.12549]
[1723541684098,6.9012,144.91,144.86,17.2575]
[1723541684406,39.98,144.96,144.89,6.9016]
[1723541684610,6.899,144.95,144.91,0.12549]
[1723541684924,6.8994,144.94,144.91,45.12549]
[1723541685238,6.8991,144.95,144.91,45.12549]
[1723541685528,39.98,145.0,144.92,1.50391493]
[1723541685707,6.8994,144.94,144.91,51.31468]
[1723541685906,39.98,144.98,144.92,0.37647]
[1723541686221,6.8975,144.98,144.93,7.02519]
[1723541686406,6.8974,144.99,144.95,0.12549]
[1723541686603,6.8966,145.0,144.95,52.02429]
[1723541687133,39.98,145.02,144.95,52.02429]
[1723541687629,6.8971,144.99,144.95,45.12549]
[1723541688126,57.2199,145.02,144.95,45.12549]
[1723541688316,39.98,145.0,144.92,7.15118]
[1723541688623,6.8979,144.98,144.94,6.8993]
[1723541688798,6.8979,144.98,144.95,45.0]
[1723541689001,39.98,145.02,144.96,0.12549]
[1723541689214,39.98,145.02,144.96,7.14918]
[1723541689413,39.98,145.02,144.96,0.25098]
[1723541689414,6.8971,144.99,144.96,0.25098]
[1723541689627,6.8971,144.99,144.95,51.8988]
[1723541689628,39.98,145.0,144.91,6.0637]
[1723541689804,39.98,145.04,144.87,21.5262]
[1723541689805,6.9022,144.88,144.87,21.5262]
[1723541689996,34.4902,144.97,144.87,21.5262]
[1723541689997,0.81962878,144.96,144.87,21.5262]
[1723541690224,39.98,144.94,144.87,28.4289]
[1723541690524,20.0,144.93,144.87,21.5262]
[1723541690723,39.98,145.0,144.87,21.5262]
[1723541690931,6.9002,144.93,144.88,24.1575]
[1723541691102,17.2433,144.99,144.9,17.2522]
[1723541691303,6.898,144.97,144.92,6.9002]
[1723541691523,0.81962878,144.99,144.9,17.2522]
[1723541691704,18.06212878,144.99,144.91,45.12549]
[1723541691913,20.0,144.98,144.91,45.12549]
[1723541692227,40.79962878,144.97,144.91,45.0]
[1723541692410,20.0,144.96,144.9,0.12549]
[1723541692611,6.9003,144.93,144.9,0.12549]
[1723541692932,20.0,144.96,144.91,0.12549]
[1723541693233,6.8989,144.95,144.91,0.12549]
[1723541693413,6.8996,144.94,144.91,0.12549]
[1723541693931,6.8999,144.93,144.91,0.12549]
[1723541694233,6.8999,144.93,144.9,45.12549]
[1723541694410,6.8995,144.94,144.9,45.0]
[1723541694807,6.899,144.95,144.91,0.25098]
[1723541695937,6.8995,144.94,144.91,0.25098]
[1723541696433,6.8995,144.94,144.91,0.12549]
[1723541697128,0.81962878,144.95,144.9,45.0]
[1723541697439,6.9007,144.92,144.88,0.12549]
[1723541697616,57.228,144.95,144.87,21.5262]
[1723541697822,20.0,144.94,144.87,21.5262]
[1723541698636,39.98,144.91,144.87,6.49]
[1723541698817,6.9022,144.88,144.87,6.49]
[1723541699024,6.9019,144.89,144.82,17.2624]
[1723541699256,6.9019,144.89,144.84,6.904]
[1723541699718,6.9023,144.88,144.83,6.9045]
[1723541700120,6.9027,144.87,144.82,24.1674]
[1723541700346,39.98,144.91,144.83,45.0]
[1723541700645,39.98,144.91,144.82,24.1671]
[1723541700646,6.9028,144.87,144.82,24.1671]
[1723541701449,6.9028,144.87,144.83,6.9046]
[1723541701630,17.2511,144.92,144.84,17.2596]
[1723541701840,26.9009,144.91,144.86,6.9031]
[1723541702146,20.0,144.91,144.88,6.902]
[1723541702346,57.2279,144.95,144.88,6.902]
[1723541702347,26.9003,144.92,144.89,45.0]
[1723541703222,6.8998,144.94,144.89,51.9017]
[1723541703423,39.98,144.97,144.89,51.9017]
[1723541703659,16.1466,145.02,144.94,6.8992]
[1723541703822,39.98,145.03,144.93,0.12549]
[1723541704152,6.8968,145.0,144.94,17.37359]
[1723541704458,6.8968,145.0,144.96,6.66449]
[1723541704930,39.98,145.05,144.96,23.90969]
[1723541705136,6.8956,145.02,144.98,7.02249]
[1723541705350,6.8956,145.02,144.98,8.40171133]
[1723541705569,17.2358,145.05,144.97,0.25098]
[1723541705858,39.98,145.01,144.96,6.539]
[1723541706061,6.8993,144.95,144.91,0.12549]
[1723541706229,6.8993,144.95,144.91,0.25098]
[1723541706433,6.8985,144.96,144.91,0.25098]
[1723541706831,6.898,144.97,144.91,0.25098]
[1723541707242,6.898,144.97,144.93,0.12549]
[1723541707444,39.98,145.03,144.93,0.25098]
[1723541707654,6.8962,145.01,144.97,0.12549]
[1723541707835,6.8987,144.96,144.93,0.12549]
[1723541708036,39.98,145.01,144.92,0.50196]
[1723541708246,6.8978,144.98,144.94,0.12549]
[1723541708436,39.98,145.01,144.94,45.12549]
[1723541708754,6.8976,144.98,144.94,52.02479]
[1723541709330,6.8971,144.99,144.96,0.12549]
[1723541709552,6.8976,144.98,144.94,45.0]
[1723541709754,6.8976,144.98,144.95,0.12549]
[1723541710341,0.81962878,145.02,144.95,0.12549]
[1723541710543,20.0,145.02,144.95,0.50196]
[1723541711060,6.8973,144.99,144.95,7.40056]
[1723541711234,6.8973,144.99,144.96,45.0]
[1723541711438,20.0,145.02,144.97,0.12549]
[1723541711738,17.235,145.06,144.97,17.49518]
[1723541711739,39.98,145.05,144.97,17.49518]
[1723541711936,6.8959,145.02,144.98,52.02269]
[1723541712134,6.8959,145.02,144.98,45.12549]
[1723541712658,6.8947,145.04,145.0,6.8965]
[1723541712845,6.8943,145.05,145.0,8.27559715]
[1723541713045,6.8943,145.05,145.01,6.896]
[1723541713241,6.8943,145.05,145.0,8.27549715]
[1723541713430,6.8949,145.04,145.0,8.27549715]
[1723541713631,6.8941,145.06,145.01,6.8958]
[1723541713859,6.8947,145.04,145.0,8.27559715]
[1723541714225,6.8947,145.04,145.0,1.37909715]
[1723541714431,6.8947,145.04,145.0,46.37909715]
[1723541714957,6.8947,145.04,145.0,53.27559715]
[1723541715334,0.81962878,145.03,144.98,6.36199]
[1723541715535,6.8975,144.98,144.94,6.899]
[1723541715848,6.8989,144.95,144.94,6.0265]
[1723541716041,6.8986,144.96,144.94,6.0265]
[1723541716437,6.8989,144.95,144.94,6.0265]
[1723541716640,6.8996,144.94,144.9,23.7527]
[1723541716833,6.9,144.93,144.9,6.5004]
[1723541717051,39.98,144.98,144.9,6.5004]
[1723541717242,20.0,144.97,144.9,6.5004]
[1723541717549,6.8988,144.96,144.91,24.1524]
[1723541717747,20.0,144.97,144.91,17.2517]
[1723541718038,6.8995,144.94,144.9,13.4015]
[1723541718241,6.8995,144.94,144.9,6.5004]
[1723541718429,6.8999,144.93,144.9,6.5004]
[1723541718834,6.8995,144.94,144.9,13.4016]
[1723541719343,6.8995,144.94,144.9,6.5004]
[1723541719549,6.8995,144.94,144.91,0.12549]
[1723541719759,6.8999,144.93,144.91,0.12549]
[1723541720761,6.8994,144.94,144.91,45.12549]
[1723541721261,20.0,144.97,144.92,0.12549]
[1723541721469,39.98,145.0,144.93,0.12549]
[1723541721650,6.8983,144.97,144.93,0.12549]
[1723541721844,6.8981,144.97,144.93,45.12549]
[1723541722042,6.8981,144.97,144.93,52.02519]
[1723541722243,6.8975,144.98,144.94,6.8993]
[1723541722466,6.8971,144.99,144.96,0.12549]
[1723541722659,6.8971,144.99,144.96,45.12549]
[1723541722976,6.8961,145.01,144.97,6.8976]
[1723541723142,6.8961,145.01,144.98,45.12549]
[1723541723342,6.8973,144.99,144.97,0.12549]
[1723541723673,6.8966,145.0,144.97,0.12549]
[1723541723849,6.8957,145.02,144.98,13.4034]
[1723541724059,6.8952,145.03,144.99,7.02239]
[1723541724445,6.8948,145.04,145.0,6.8965]
[1723541724767,6.8938,145.06,145.01,69.38668]
[1723541725348,6.8943,145.05,145.01,69.38668]
[1723541725552,57.2095,145.1,145.03,0.12549]
[1723541725763,6.8935,145.07,145.03,7.02049]
[1723541725950,6.8935,145.07,145.03,0.12549]
[1723541726153,6.8928,145.08,145.03,52.39666]
[1723541726373,6.8928,145.08,145.05,0.12549]
[1723541726762,6.8923,145.09,145.05,0.12549]
[1723541727075,6.8923,145.09,145.05,0.58962118]
[1723541727371,6.8933,145.07,145.05,0.12549]
[1723541728161,17.2286,145.11,145.05,0.12549]
[1723541728162,6.8927,145.08,145.05,0.12549]
[1723541728873,6.8923,145.09,145.05,7.14508]
[1723541729072,6.8923,145.09,145.06,45.0]
[1723541729577,6.8919,145.1,145.07,0.12549]
[1723541729776,39.98,145.16,145.07,0.50196]
[1723541729950,17.2239,145.15,145.07,17.73456]
[1723541730149,6.8924,145.09,145.07,0.37647]
[1723541730447,6.8919,145.1,145.07,0.12549]
[1723541730642,6.8919,145.1,145.07,0.50196]
[1723541731352,6.8914,145.11,145.07,7.39506]
[1723541731655,39.98,145.14,145.08,45.0]
[1723541731656,0.81962878,145.13,145.08,45.0]
[1723541731872,0.81962878,145.13,145.07,0.12549]
[1723541732060,6.8927,145.08,145.06,51.0968]
[1723541732264,6.8932,145.07,145.06,6.0968]
[1723541732482,6.8937,145.06,145.02,13.1131]
[1723541732772,6.8937,145.06,145.02,6.2177]
[1723541733007,6.8933,145.07,145.02,13.1129]
[1723541733183,6.8938,145.06,145.02,13.1129]
[1723541733473,6.8933,145.07,145.03,6.8951]
[1723541733653,6.8931,145.08,145.03,6.895]
[1723541733855,6.8932,145.07,145.04,45.25098]
[1723541734158,0.81962878,145.09,145.03,45.12549]
[1723541734159,6.8938,145.06,145.03,45.12549]
[1723541734354,6.8946,145.04,145.02,6.2177]
[1723541735174,6.8941,145.06,145.02,6.2177]
[1723541735368,6.8932,145.07,145.03,6.8951]
[1723541735571,6.8932,145.07,145.02,6.2177]
[1723541735572,6.8932,145.07,145.02,13.1131]
[1723541735761,6.8932,145.07,145.03,45.12549]
[1723541736467,39.98,145.1,145.03,45.12549]
[1723541736669,39.98,145.08,145.02,6.2177]
[1723541736883,6.8943,145.05,145.02,6.2177]
[1723541737086,6.8926,145.09,145.03,17.36289]
[1723541737294,6.8928,145.08,145.05,0.12549]
[1723541737599,57.2086,145.11,145.04,45.12549]
[1723541737786,57.2086,145.11,145.03,45.25098]
[1723541738303,6.8923,145.09,145.05,6.8941]
[1723541739406,6.8928,145.08,145.05,0.12549]
[1723541739607,6.8928,145.08,145.05,45.12549]
[1723541739907,6.8944,145.05,145.03,0.25098]
[1723541740203,6.8944,145.05,145.03,45.25098]
[1723541740399,6.8944,145.05,145.03,45.12549]
[1723541740582,6.8937,145.06,145.03,45.12549]
[1723541741687,39.98,145.09,145.03,45.12549]
[1723541742007,6.894,145.06,145.03,45.12549]
[1723541742304,6.8919,145.1,145.06,6.8933]
[1723541742504,6.8914,145.11,145.07,52.01859]
[1723541742676,6.8934,145.07,145.05,0.12549]
[1723541743022,6.8933,145.07,145.05,0.12549]
[1723541743173,6.8933,145.07,145.04,0.37647]
[1723541743377,6.8933,145.07,145.04,0.12549]
[1723541743599,6.8933,145.07,145.04,0.25098]
[1723541743801,6.8924,145.09,145.05,6.894]
[1723541743976,6.8924,145.09,145.06,45.25098]
[1723541744176,39.98,145.13,145.06,45.0]
[1723541744177,17.2286,145.11,145.06,45.0]
[1723541744386,20.0,145.1,145.05,7.01939]
[1723541744591,26.8921,145.1,145.06,52.27007]
[1723541745011,6.8922,145.09,145.06,45.37647]
[1723541746215,6.8932,145.07,145.04,0.12549]
[1723541746414,6.8932,145.07,145.04,45.50196]
[1723541746891,6.8928,145.08,145.04,52.39646]
[1723541748602,20.0,145.1,145.04,62.73816]
[1723541748789,20.0,145.11,145.04,62.73816]
[1723541749193,20.0,145.11,145.02,6.2177]
[1723541749401,6.8928,145.08,145.04,24.1303]
[1723541750020,6.8923,145.09,145.05,6.894]
[1723541750206,6.8923,145.09,145.02,6.2177]
[1723541750207,0.81962878,145.08,145.02,6.2177]
[1723541750407,6.8951,145.03,145.02,6.2177]
[1723541750792,6.8951,145.03,144.99,13.3931]
[1723541750988,6.8951,145.03,145.0,6.8965]
[1723541751214,6.8947,145.04,145.0,6.8965]
[1723541751715,6.8962,145.01,144.99,6.4964]
[1723541752123,6.8957,145.02,144.99,6.4964]
[1723541752315,6.8952,145.03,144.99,13.3931]
[1723541752819,6.8949,145.04,145.0,52.14738]
[1723541752987,6.8949,145.04,145.0,52.27287]
[1723541754120,6.8951,145.03,145.0,45.37647]
[1723541754306,6.8951,145.03,145.0,45.12549]
[1723541755008,37.2327,145.08,144.96,34.4921]
[1723541755009,6.8962,145.01,144.97,6.8979]
[1723541755213,6.8962,145.01,144.98,0.37647]
[1723541755395,6.8957,145.02,144.98,7.27387]
[1723541755593,6.8952,145.03,144.99,6.8969]
[1723541756514,6.8952,145.03,145.0,0.12549]
[1723541756714,6.8957,145.02,145.0,45.0]
[1723541756905,6.895,145.04,144.99,52.02219]
[1723541757222,6.895,145.04,144.99,62.36779]
[1723541757623,6.8951,145.03,144.99,69.26459]
[1723541759525,6.8956,145.02,144.99,62.36779]
[1723541760026,6.8953,145.03,144.99,62.36779]
[1723541760397,6.8953,145.03,144.99,69.26469]
[1723541761625,6.8961,145.01,144.99,45.12549]
[1723541761811,6.8957,145.02,144.99,0.12549]
[1723541762009,6.8954,145.03,144.99,7.02239]
[1723541762610,0.81962878,145.04,144.99,0.12549]
[1723541762812,20.81962878,145.04,144.99,0.12549]
[1723541763220,20.81962878,145.04,144.98,45.37647]
[1723541763430,32.02,145.01,144.95,6.3266]
[1723541763726,6.8997,144.94,144.91,6.0358]
[1723541763932,6.8999,144.93,144.91,6.0358]
[1723541764138,6.8995,144.94,144.91,6.0358]
[1723541764731,6.8999,144.93,144.91,6.0358]
[1723541764939,6.8999,144.93,144.89,24.1554]
[1723541765230,6.9004,144.92,144.88,6.9021]
[1723541765730,6.9013,144.9,144.87,6.4733]
[1723541765934,0.81962878,144.91,144.83,17.2608]
[1723541766099,6.9021,144.89,144.83,23.3045]
[1723541767117,6.9023,144.88,144.83,30.2087]
[1723541767435,0.81962878,144.87,144.83,6.0437]
[1723541767731,20.0,144.89,144.83,6.0437]
[1723541767927,26.9018,144.89,144.84,6.9038]
[1723541768322,20.0,144.89,144.83,6.0437]
[1723541768699,6.9022,144.88,144.83,6.0437]
[1723541769227,6.9028,144.87,144.83,12.9483]
[1723541769927,6.9028,144.87,144.83,6.0437]
[1723541770231,6.9028,144.87,144.83,12.9482]
[1723541770410,6.9023,144.88,144.84,0.12549]
[1723541770609,6.9023,144.88,144.84,45.12549]
[1723541770929,6.9028,144.87,144.83,6.0437]
[1723541771633,0.81962878,144.88,144.83,6.0437]
[1723541771634,7.72302878,144.86,144.83,6.0437]
[1723541771930,6.9034,144.86,144.83,6.0437]
[1723541772132,0.81962878,144.85,144.79,23.5962]
[1723541772350,6.9047,144.83,144.79,23.5962]
[1723541772636,7.72472878,144.82,144.79,23.5962]
[1723541772813,6.9047,144.83,144.79,6.3307]
[1723541773518,40.09,144.91,144.79,6.3307]
[1723541773715,6.9026,144.88,144.83,6.9045]
[1723541773921,0.81962878,144.89,144.82,17.262]
[1723541774124,6.9032,144.86,144.82,17.262]
[1723541774423,40.09,144.88,144.79,23.5963]
[1723541774616,40.09,144.86,144.8,45.0]
[1723541774813,40.09,144.86,144.79,24.1718]
[1723541774814,6.9042,144.84,144.79,24.1718]
[1723541775423,0.81962878,144.83,144.78,0.12549]
[1723541775622,6.9054,144.82,144.77,15.4481]
[1723541775934,0.81962878,144.83,144.77,15.4481]
[1723541775935,6.9047,144.83,144.78,6.907]
[1723541776135,6.0344,144.94,144.77,15.4481]
[1723541776136,77.3438,144.9,144.77,15.4481]
[1723541776429,40.09,144.86,144.77,15.4481]
[1723541776630,6.9054,144.82,144.78,6.9069]
[1723541777012,57.3485,144.86,144.79,6.9065]
[1723541777216,6.9027,144.87,144.83,6.9042]
[1723541777434,6.9027,144.87,144.82,6.9049]
[1723541777736,6.9027,144.87,144.83,6.9045]
[1723541777922,6.9023,144.88,144.83,6.9045]
[1723541778118,6.9018,144.89,144.84,6.9041]
[1723541778319,6.9018,144.89,144.85,6.9036]
[1723541778508,6.9026,144.88,144.83,17.38659]
[1723541778714,40.09,144.91,144.83,17.38659]
[1723541778937,6.9023,144.88,144.84,0.12549]
[1723541779135,6.9019,144.89,144.84,52.02959]
[1723541780340,55.9487,144.93,144.85,17.2588]
[1723541780552,40.09,144.93,144.86,6.9028]
[1723541780742,40.09,144.93,144.85,24.1624]
[1723541780918,6.9017,144.89,144.85,17.2588]
[1723541781242,6.9017,144.89,144.85,24.1624]
[1723541781540,40.09,144.95,144.87,17.2562]
[1723541781757,6.8999,144.93,144.89,6.9017]
[1723541781916,20.0,144.92,144.89,6.9017]
[1723541782111,20.0,144.92,144.86,0.12549]
[1723541782316,57.3428,144.91,144.8,33.4761]
[1723541782512,6.9023,144.88,144.83,52.02969]
[1723541782718,6.9023,144.88,144.84,7.02959]
[1723541783240,6.9013,144.9,144.86,6.9031]
[1723541784042,6.9009,144.91,144.87,6.9026]
[1723541784222,20.0,144.92,144.88,52.02759]
[1723541784422,6.9,144.93,144.88,69.28279]
[1723541784651,6.8993,144.95,144.88,62.38069]
[1723541784817,72.4553,144.97,144.9,0.12549]
[1723541785342,72.4553,144.97,144.9,45.12549]
[1723541785843,6.9,144.93,144.9,45.12549]
[1723541786438,55.21,144.97,144.9,62.37829]
[1723541786636,6.8992,144.95,144.9,62.37829]
[1723541786817,6.8995,144.94,144.9,69.27939]
[1723541787219,6.899,144.95,144.91,6.9007]
[1723541787415,6.9003,144.92,144.89,6.71139]
[1723541787644,40.09,144.94,144.89,6.5859]
[1723541787823,20.81962878,144.93,144.89,6.5859]
[1723541788022,0.81962878,144.92,144.89,6.5859]
[1723541788223,6.9013,144.9,144.85,6.56129]
[1723541788446,6.9013,144.9,144.86,7.02839]
[1723541788648,6.9018,144.89,144.86,0.12549]
[1723541789022,6.9013,144.9,144.86,7.02859]
[1723541790327,6.9008,144.91,144.87,6.9026]
[1723541790949,6.9013,144.9,144.86,24.28619]
[1723541791652,6.9028,144.87,144.85,6.4358]
[1723541791822,6.9025,144.88,144.85,6.4358]
[1723541792024,6.9017,144.9,144.85,23.6947]
[1723541792253,6.9017,144.9,144.86,0.12549]
[1723541792547,6.9023,144.88,144.85,23.6947]
[1723541792784,6.9023,144.88,144.85,6.4358]
[1723541792926,6.9029,144.87,144.85,6.4358]
[1723541793125,6.9032,144.86,144.82,24.167]
[1723541793627,6.9037,144.85,144.82,17.2619]
[1723541794057,0.81962878,144.87,144.81,6.0969]
[1723541794058,0.81962878,144.84,144.81,6.0969]
[1723541794354,7.72412878,144.84,144.81,6.0969]
[1723541794559,6.9046,144.83,144.81,6.0969]
[1723541794717,7.72472878,144.83,144.79,17.2657]
[1723541795226,32.09,144.85,144.79,17.2657]
[1723541795227,6.9043,144.84,144.79,17.2657]
[1723541795426,6.9043,144.84,144.8,6.9056]
[1723541795730,6.9033,144.86,144.82,6.9051]
[1723541798657,6.9051,144.82,144.78,24.1739]
[1723541798837,6.9059,144.81,144.77,6.5928]
[1723541799032,40.11,144.85,144.77,6.5928]
[1723541799238,6.9047,144.83,144.79,6.9061]
[1723541799955,6.9043,144.84,144.8,6.906]
[1723541800130,6.9038,144.85,144.81,52.03099]
[1723541800325,6.9044,144.84,144.81,45.12549]
[1723541800528,6.9051,144.82,144.8,45.0]
[1723541800732,6.9051,144.82,144.79,17.51688]
[1723541801453,57.3698,144.85,144.77,6.5928]
[1723541801634,6.9057,144.81,144.77,13.4999]
[1723541801836,6.9053,144.82,144.78,6.9069]
[1723541802347,26.9043,144.84,144.79,6.9064]
[1723541802553,26.9043,144.84,144.8,6.9059]
[1723541802554,6.9043,144.84,144.8,6.9059]
[1723541802934,6.9043,144.84,144.79,0.37647]
[1723541802935,6.9052,144.82,144.79,0.37647]
[1723541803136,6.9052,144.82,144.79,45.37647]
[1723541803336,17.2585,144.86,144.79,45.37647]
[1723541803538,20.0,144.85,144.79,45.37647]
[1723541803834,17.2607,144.84,144.77,6.5928]
[1723541804030,6.9063,144.8,144.77,6.5928]
[1723541804657,18.08032878,144.84,144.77,6.5928]
[1723541804658,6.9066,144.79,144.77,6.5928]
[1723541804964,7.72622878,144.79,144.75,39.5888]
[1723541805129,6.9075,144.77,144.73,13.1958]
[1723541805964,7.72682878,144.78,144.74,7.7289388]
[1723541806349,7.72712878,144.77,144.74,0.8200388]
[1723541806654,6.9075,144.77,144.74,0.8200388]
[1723541807171,0.81962878,144.76,144.74,0.8200388]
[1723541807673,6.9084,144.75,144.74,0.8200388]
[1723541807962,26.9084,144.75,144.74,0.8200388]
[1723541809332,6.9084,144.75,144.74,0.8200388]
[1723541812173,6.9081,144.76,144.74,0.8200388]
[1723541812378,6.9077,144.77,144.74,0.8200388]
[1723541812539,20.0,144.76,144.74,0.8200388]
[1723541812740,6.9077,144.77,144.74,0.8200388]
[1723541813256,6.9075,144.77,144.74,0.8200388]
[1723541813648,57.375,144.81,144.74,0.8200388]
[1723541813856,6.908,144.76,144.74,0.8200388]
[1723541814039,6.9084,144.75,144.74,0.8200388]
[1723541814343,40.11,144.79,144.74,0.8200388]
[1723541814547,20.0,144.78,144.74,0.8200388]
[1723541814747,6.9078,144.77,144.74,0.8200388]
[1723541814959,6.9079,144.76,144.74,0.8200388]
[1723541815259,6.9076,144.77,144.74,0.8200388]
[1723541815475,26.9071,144.78,144.74,7.7288388]
[1723541815766,6.9071,144.78,144.74,7.7288388]
[1723541816063,6.9069,144.79,144.75,52.03389]
[1723541816842,57.3742,144.81,144.74,18.0922388]
[1723541817151,20.0,144.8,144.74,18.0922388]
[1723541817361,6.9077,144.77,144.74,18.0922388]
[1723541818260,6.9072,144.78,144.74,25.0011388]
[1723541818462,52.12,144.8,144.74,18.0922388]
[1723541818652,6.9073,144.78,144.74,25.0010388]
[1723541819055,6.9075,144.77,144.74,25.0010388]
[1723541819257,6.9072,144.78,144.74,25.0010388]
[1723541819776,6.907,144.78,144.75,45.12549]
[1723541820349,6.9076,144.77,144.75,45.0]
[1723541820553,6.9076,144.77,144.74,18.0922388]
[1723541820755,6.9071,144.78,144.74,25.0009388]
[1723541821072,6.9075,144.77,144.74,0.8200388]
[1723541821645,6.9076,144.77,144.74,0.8200388]